Cogmind - Beta 11 *** ADVENTURER MODE // 2022.03.22 @ 13:39:15 Player: Terra Result: Destroyed by B-75 Beast with Magnetic Acceleration Cannon Performance ------------- Evolutions (5) 2500 Regions Visited (11) 2200 Robots Destroyed (46) 230 Value Destroyed (1836) 1836 Prototype IDs (4) 80 Alien Tech Used (0) 0 Bonus (790) 790 TOTAL SCORE: 7636 Bonus ------- Follower Combat Kills 290 Entered DSFs 500 Cogmind --------- Core Integrity 0/1000 Matter 193/300 Energy 80/100 System Corruption 30% Temperature Cool (0) Movement Core (300) Ox5 Location -5/Factory Parts ------- > --- POWER (2) -------- (None) > --- PROPULSION (6) --- (None) > --- UTILITY (6) ------ Medium Storage Unit Cloaking Device > --- WEAPON (3) ------- Gauss Cannon > --- INVENTORY (10) --- Advanced Heat Sink Improved Kinecellerator Peak State ------------ > --- POWER ------------ Light Deuterium Engine Light Angular Momentum Engine > --- PROPULSION ------- Compact Wheel Compact Wheel Compact Wheel Compact Wheel > --- UTILITY ---------- Improved Heat Sink Damper Plating Remote Force Field > --- WEAPON ----------- Long-range Proton Cannon Long-range Proton Cannon Advanced Assault Cannon > --- INVENTORY -------- Improved Carbon-fiber Leg Improved Carbon-fiber Leg Flexi-carbon Leg Flexi-carbon Leg Medium Storage Unit [Rating: 62] Favorites ----------- Power Light Nuclear Core Engine Ion Engine Power Core Light Nuclear Core Propulsion Improved Carbon-fiber Leg Leg Improved Carbon-fiber Leg Wheel Compact Wheel Hover Unit Airjet Flight Unit Flight Unit Utility Improved Heat Sink Device Improved Heat Sink Storage Huge Storage Unit Processor Improved Target Analyzer Protection Core Shielding Weapon Advanced Assault Cannon Energy Gun Small Laser Energy Cannon Long-range Proton Cannon Ballistic Gun KE Penetrator Ballistic Cannon Advanced Assault Cannon Build | -11 -10 -9 -8 -7 -7 -7 -6 -6 -6 -6 -5 ------- Run | Scr Mat Mat Mat Fac Was Fac Fac Was Fac DSF Fac Slots Evolved 10 | . . 2 2 2 . . 2 . . . 2 Power 1 | . . . . . . . 1 . . . . Propulsion 4 | . . 2 2 . . . . . . . . Utility 4 | . . . . 2 . . 1 . . . 1 Weapon 1 | . . . . . . . . . . . 1 Parts Attached 94 | 6 3 12 14 5 . 1 3 . 2 7 41 Power 10 | 1 . . 1 . . . 1 . 2 . 5 Engine 7 | 1 . . . . . . . . 2 . 4 Core 3 | . . . 1 . . . 1 . . . 1 Reactor . | . . . . . . . . . . . . Propulsion 37 | 2 2 2 5 1 . . 1 . . 4 20 Treads . | . . . . . . . . . . . . Leg 12 | . . . 4 1 . . 1 . . . 6 Wheel 19 | 2 . . . . . . . . . 4 13 Hover 2 | . . . 1 . . . . . . . 1 Flight 4 | . 2 2 . . . . . . . . . Utility 22 | 1 1 3 3 2 . 1 1 . . 1 9 Device 9 | . 1 . . 1 . . . . . . 7 Storage 6 | 1 . 2 2 . . . . . . . 1 Processor 1 | . . . . . . . . . . . 1 Hackware . | . . . . . . . . . . . . Protection 6 | . . 1 1 1 . 1 1 . . 1 . Artifact . | . . . . . . . . . . . . Weapon 25 | 2 . 7 5 2 . . . . . 2 7 Energy Gun 6 | 2 . 3 . . . . . . . . 1 Energy Cannon 14 | . . 4 5 . . . . . . 2 3 Ballistic Gun 1 | . . . . . . . . . . . 1 Ballistic Cannon 4 | . . . . 2 . . . . . . 2 Launcher . | . . . . . . . . . . . . Special Weapon . | . . . . . . . . . . . . Impact Weapon . | . . . . . . . . . . . . Slashing Weapon . | . . . . . . . . . . . . Piercing Weapon . | . . . . . . . . . . . . Special Melee Weapon . | . . . . . . . . . . . . Unidentified Prototypes 2 | . . 1 . . . . . . . . 1 Parts Lost 51 | . . 3 4 . . . . 5 . . 39 Power 7 | . . . 1 . . . . 2 . . 4 Propulsion 24 | . . 2 3 . . . . . . . 19 Utility 12 | . . 1 . . . . . 2 . . 9 Weapon 8 | . . . . . . . . 1 . . 7 Highest Loss Streak 10 | . . 2 3 . . . . 5 . . 10 To Critical Strikes . | . . . . . . . . . . . . Average Slot Usage (%) 72 | . 92 80 57 86 92 91 99 74 41 56 59 Engine 4 | . 14 11 6 . . . . . 8 8 5 Core 3 | . . . 2 7 7 7 13 7 . . . Leg 17 | . . . 9 32 38 38 39 32 20 4 10 Wheel 5 | . 20 . . . . . . . . 20 9 Flight 3 | . 6 32 9 . . . . . . . . Device 7 | . 7 7 . 7 7 7 6 6 6 6 12 Storage 6 | . 14 11 9 7 7 7 6 3 . . 4 Protection 7 | . . 2 8 15 15 14 19 14 6 5 . Energy Gun 2 | . 28 11 2 . . . . . . . . Energy Cannon 3 | . . 4 5 . . . . . . 8 4 Ballistic Cannon 5 | . . . . 15 15 15 13 8 . . 3 Naked Turns . | . . . . . . . . . . . . Heaviest Build 113 | 13 14 27 94 100 100 101 113 113 12 69 92 Greatest Support 110 | 26 26 16 72 90 90 90 110 110 56 64 106 Greatest Overweight (x) 13 | 1 1 3 8 1 1 1 1 1 . 1 13 Average Overweight (x) . | . . . 1 1 1 1 1 . . . . Largest Inventory Capacity 25 | 8 8 15 25 25 25 25 25 25 5 5 10 Average Capacity 14 | 7 8 8 12 25 25 25 25 17 5 5 9 Most Carried 24 | 6 3 8 15 17 23 24 24 24 5 5 8 Average Carried 9 | 2 1 5 10 14 21 23 23 17 5 3 1 Final Capacity 25 | 8 8 8 25 25 25 25 25 5 5 5 10 Final Carried 24 | 1 3 8 15 17 23 24 24 5 5 5 2 Class Distribution -------------------- 75% | Mutant 17% | Scavenger-Mutant 4% | Tank Dominant Class ---------------- Mutant | -10/Materials Mutant | -9/Materials Mutant | -8/Materials Mutant | -7/Factory Mutant | -7/Waste Mutant | -7/Factory Scavenger-Mutant | -6/Factory Scavenger-Mutant | -6/Waste Mutant | -6/Factory Mutant | -6/DSF Mutant | -5/Factory Resources | -11 -10 -9 -8 -7 -7 -7 -6 -6 -6 -6 -5 ----------- Run | Scr Mat Mat Mat Fac Was Fac Fac Was Fac DSF Fac Matter Collected 1589 | 245 45 140 65 37 90 . 41 6 . 90 830 Remotely . | . . . . . . . . . . . . Salvage Created 1842 | . 115 524 340 36 . . . . . . 827 Parts 98 | . 21 21 12 4 . . . . . . 40 Haulers Intercepted . | . . . . . . . . . . . . Recyclers Shooed 3 | . . . . . . . . . . . 3 Parts Field Recycled . | . . . . . . . . . . . . Retrieved Matter . | . . . . . . . . . . . . Parts Self-Destructed . | . . . . . . . . . . . . Prevented . | . . . . . . . . . . . . Kills | -11 -10 -9 -8 -7 -7 -7 -6 -6 -6 -6 -5 ------- Run | Scr Mat Mat Mat Fac Was Fac Fac Was Fac DSF Fac Combat Hostiles Destroyed 38 | . 6 9 7 1 . . . . . . 15 Guns 7 | . 6 1 . . . . . . . . . Cannons 30 | . . 7 7 1 . . . . . . 15 Classes Destroyed 11 | . 2 3 1 1 . . . . . . 4 Worker 2 | . . . . . . . . . . . 2 Builder 2 | . . . . . . . . . . . 2 Recycler 2 | . . 1 . . . . . . . . 1 Watcher 2 | . 1 . . . . . . . . . 1 Swarmer 6 | . 6 . . . . . . . . . . Grunt 14 | . . 7 4 . . . . . . . 3 Brawler 1 | . . . . . . . . . . . 1 Duelist 2 | . . . 2 . . . . . . . . Sentry 5 | . . 2 1 . . . . . . . 2 Hunter 3 | . . . . . . . . . . . 3 Programmer 7 | . . . . 1 . . . . . . 6 Best Kill Streak 6 | . 4 5 3 1 . . . . . . 6 Combat Bots Only 5 | . 3 4 3 1 . . . . . . 5 Max Kills in Single Turn 2 | . 2 1 1 1 . . . . . . 1 Gunslinging 1 | . 1 . . . . . . . . . . Exploded . | . . . . . . . . . . . . Melee . | . . . . . . . . . . . . Uniques/NPCs Destroyed . | . . . . . . . . . . . . Combat | -11 -10 -9 -8 -7 -7 -7 -6 -6 -6 -6 -5 -------- Run | Scr Mat Mat Mat Fac Was Fac Fac Was Fac DSF Fac Damage Taken 5791 | . 95 296 430 23 . . . 131 . 628 4188 Core 1304 | . 32 103 106 9 . . . 20 . 24 1010 Absorbed by Shields 121 | . . . . . . . . . . . 121 Redirected to Shielding 102 | . . . 45 2 . . . 55 . . . Core Remaining (%) 88 | 100 87 74 80 . . 98 . . . 94 . Volleys Fired 180 | . 14 20 18 1 . . 1 . . . 126 Largest 3 | . 2 2 2 2 . . 2 . . . 3 Hottest 194 | . 80 108 136 96 . . 96 . . . 194 Shots Fired 242 | . 21 38 35 2 . . 2 . . . 144 Gun 60 | . 21 20 4 . . . . . . . 15 Cannon 182 | . . 18 31 2 . . 2 . . . 129 Launcher . | . . . . . . . . . . . . Special . | . . . . . . . . . . . . Kinetic 113 | . . . . 2 . . 2 . . . 109 Thermal 104 | . 7 38 35 . . . . . . . 24 Explosive . | . . . . . . . . . . . . Electromagnetic 25 | . 14 . . . . . . . . . 11 Robot Hit Streak 27 | . 3 20 27 2 . . 3 . . . 18 Robot Miss Streak 2 | . 2 2 1 . . . 1 . . . 2 Penetration Max . | . . . . . . . . . . . . Secondary Targets 2 | . 2 . . . . . . . . . . Max Gunslinging Chain 1 | . 1 . . . . . . . . . . Shots Hit Robots 189 | . 10 34 30 1 . . 1 . . . 113 Core Hits 80 | . 7 16 15 1 . . . . . . 41 Critical Kills 2 | . . 1 . . . . . . . . 1 Critical Parts Destroyed 1 | . . . . . . . . . . . 1 Critical Strikes 10 | . . 1 . 1 . . . . . . 8 Meltdown 2 | . . 1 . . . . . . . . 1 Destroy 1 | . . . . . . . . . . . 1 Blast 7 | . . . . 1 . . . . . . 6 Melee Attacks . | . . . . . . . . . . . . Impact . | . . . . . . . . . . . . Slashing . | . . . . . . . . . . . . Piercing . | . . . . . . . . . . . . Sneak Attacks . | . . . . . . . . . . . . Combat Hostiles . | . . . . . . . . . . . . Follow-up Attacks . | . . . . . . . . . . . . Damage Inflicted 4366 | . 116 530 582 30 . . 29 . . . 3079 Guns 652 | . 116 183 42 . . . . . . . 311 Cannons 3709 | . . 347 535 30 . . 29 . . . 2768 Explosions . | . . . . . . . . . . . . Melee . | . . . . . . . . . . . . Ramming 5 | . . . 5 . . . . . . . . Kinetic 2385 | . . . . 30 . . 29 . . . 2326 Thermal 1814 | . 11 530 577 . . . . . . . 696 Explosive . | . . . . . . . . . . . . Electromagnetic 162 | . 105 . . . . . . . . . 57 Impact . | . . . . . . . . . . . . Slashing . | . . . . . . . . . . . . Piercing . | . . . . . . . . . . . . Highest Corruption 30 | . . . . . . . . . . . 30 Average Corruption 16 | . . . . . . . . . . . 16 Corruption Purged 2 | . . . . . . . . . . . 2 Corruption Blocked . | . . . . . . . . . . . . Effects 54 | . . . . . . . . . . . 54 Message Errors 15 | . . . . . . . . . . . 15 Matter Fused 13 | . . . . . . . . . . . 13 Heat Flow Errors 3 | . . . . . . . . . . . 3 Energy Discharges 5 | . . . . . . . . . . . 5 Parts Rejected 1 | . . . . . . . . . . . 1 Data Loss (minor) 7 | . . . . . . . . . . . 7 Data Loss (major) 3 | . . . . . . . . . . . 3 Misfires 2 | . . . . . . . . . . . 2 Misdirections 3 | . . . . . . . . . . . 3 Weapon Failures 2 | . . . . . . . . . . . 2 Overload Shots . | . . . . . . . . . . . . Overflow Damage 67 | . . . . . . . 3 . . . 64 Projectiles 67 | . . . . . . . 3 . . . 64 Explosions . | . . . . . . . . . . . . Melee . | . . . . . . . . . . . . Knockbacks 15 | . . . . . . . 1 . . . 14 Impact . | . . . . . . . . . . . . Kinetic 15 | . . . . . . . 1 . . . 14 Secondary . | . . . . . . . . . . . . Self-Inflicted Damage 1 | . . . 1 . . . . . . . . Shots . | . . . . . . . . . . . . Rammed 3 | . . . 3 . . . . . . . . Targets Rammed 3 | . . . 3 . . . . . . . . Kicked . | . . . . . . . . . . . . Crushed . | . . . . . . . . . . . . Highest Temperature 612 | . 54 542 492 . . . . . . . 612 Average Temperature 179 | . 24 216 187 . . . . . . . 169 Received Heat Transfer 937 | . . 162 234 . . . . . . 60 481 Effects 21 | . . 3 3 . . . . . . . 15 Shutdowns 7 | . . 1 1 . . . . . . . 5 Energy Bleed 1 | . . . 1 . . . . . . . . Interference 1 | . . . . . . . . . . . 1 Matter Decay 2 | . . . . . . . . . . . 2 Short Circuit 2 | . . . 1 . . . . . . . 1 Damage (minor) 1 | . . 1 . . . . . . . . . Damage (major) 6 | . . . . . . . . . . . 6 Damage (core) 1 | . . 1 . . . . . . . . . Siege Activations . | . . . . . . . . . . . . Robots Corrupted . | . . . . . . . . . . . . Combat Hostiles . | . . . . . . . . . . . . Parts Fried 1 | . 1 . . . . . . . . . . Impact Corruptions . | . . . . . . . . . . . . Robots Melted 2 | . . 1 . . . . . . . . 1 Combat Hostiles 1 | . . 1 . . . . . . . . . Parts Melted 14 | . . 4 4 . . . . . . . 6 Heat Transferred 3291 | . 25 1054 1062 . . . . . . . 1150 Parts Sabotaged . | . . . . . . . . . . . . Parts Stolen . | . . . . . . . . . . . . Parts Stripped . | . . . . . . . . . . . . Power Chain Reactions . | . . . . . . . . . . . . Missiles Intercepted . | . . . . . . . . . . . . Alert | -11 -10 -9 -8 -7 -7 -7 -6 -6 -6 -6 -5 ------- Run | Scr Mat Mat Mat Fac Was Fac Fac Was Fac DSF Fac Peak Influence 354 | . 192 354 232 63 18 61 116 33 . 68 194 Initial 127 | . . 69 127 33 18 11 25 33 . . 21 Average 78 | . 95 241 130 37 18 35 70 13 . 23 70 Maximum Alert Level 1 | . . 1 1 . . . . . . . . Low Security (%) 93 | 100 100 34 84 100 100 100 100 100 100 100 100 Level 1 6 | . . 65 15 . . . . . . . . Level 2 . | . . . . . . . . . . . . Level 3 . | . . . . . . . . . . . . Level 4 . | . . . . . . . . . . . . Level 5 . | . . . . . . . . . . . . High Security . | . . . . . . . . . . . . Max Security . | . . . . . . . . . . . . Squads Dispatched 11 | . . 1 1 1 . 2 2 . . 2 2 Investigation 1 | . . . . . . 1 . . . . . Extermination 5 | . . . . 1 . 1 1 . . . 2 Reinforcement 5 | . . 1 1 . . . 1 . . 2 . Assault . | . . . . . . . . . . . . Garrison . | . . . . . . . . . . . . Intercept . | . . . . . . . . . . . . Searches Triggered . | . . . . . . . . . . . . Construction Impeded . | . . . . . . . . . . . . Haulers Reinforced . | . . . . . . . . . . . . Active Scanning Responses . | . . . . . . . . . . . . Cargo Convoy Interrupts . | . . . . . . . . . . . . Stealth | -11 -10 -9 -8 -7 -7 -7 -6 -6 -6 -6 -5 --------- Run | Scr Mat Mat Mat Fac Was Fac Fac Was Fac DSF Fac Distress Signals 3 | . 1 1 . . . . . . . . 1 Communications Jammed 2 | . . . . . . . . . . . 2 Distress Signals 2 | . . . . . . . . . . . 2 Times Spotted 86 | . 9 14 10 1 1 . 4 4 . 7 36 Peak Tracking Total 7 | . 4 6 4 2 1 1 2 4 . 7 6 Tactical Retreats 11 | . 1 1 . . . . . . . 1 8 Traps | -11 -10 -9 -8 -7 -7 -7 -6 -6 -6 -6 -5 ------- Run | Scr Mat Mat Mat Fac Was Fac Fac Was Fac DSF Fac Traps Triggered 5 | . 1 . . 1 . . 1 . . 2 . Indirectly . | . . . . . . . . . . . . Trap Hack Attempts . | . . . . . . . . . . . . Triggered . | . . . . . . . . . . . . Disarmed . | . . . . . . . . . . . . Reprogrammed . | . . . . . . . . . . . . Reused . | . . . . . . . . . . . . Traps Extracted . | . . . . . . . . . . . . Installed . | . . . . . . . . . . . . Triggered . | . . . . . . . . . . . . Machines | -11 -10 -9 -8 -7 -7 -7 -6 -6 -6 -6 -5 ---------- Run | Scr Mat Mat Mat Fac Was Fac Fac Was Fac DSF Fac Machines Disabled 1 | . . . . . . . . . . . 1 Max in Single Turn 1 | . . . . . . . . . . . 1 Machines Sabotaged . | . . . . . . . . . . . . Garrisons Compromised . | . . . . . . . . . . . . Overloaded Fab Kills . | . . . . . . . . . . . . Hacking | -11 -10 -9 -8 -7 -7 -7 -6 -6 -6 -6 -5 --------- Run | Scr Mat Mat Mat Fac Was Fac Fac Was Fac DSF Fac Machines Accessed 5 | . 2 . . . . . 1 . 1 . 1 Terminals 5 | . 2 . . . . . 1 . 1 . 1 Fabricators . | . . . . . . . . . . . . Repair Stations . | . . . . . . . . . . . . Recycling Units . | . . . . . . . . . . . . Scanalyzers . | . . . . . . . . . . . . Garrison Access . | . . . . . . . . . . . . Total Hacks 6 | . 3 . . . . . 1 . 1 . 1 Successful 5 | . 2 . . . . . 1 . 1 . 1 Failed 1 | . 1 . . . . . . . . . . Catastrophic 1 | . 1 . . . . . . . . . . Database Lockouts . | . . . . . . . . . . . . Manual . | . . . . . . . . . . . . Terminals 6 | . 3 . . . . . 1 . 1 . 1 Fabricators . | . . . . . . . . . . . . Repair Stations . | . . . . . . . . . . . . Recycling Units . | . . . . . . . . . . . . Scanalyzers . | . . . . . . . . . . . . Garrison Access . | . . . . . . . . . . . . Terminal Hacks 5 | . 2 . . . . . 1 . 1 . 1 Prototype ID Bank 1 | . 1 . . . . . . . . . . Open DSF 3 | . . . . . . . 1 . 1 . 1 Zone Layout 1 | . 1 . . . . . . . . . . Fabricator Hacks . | . . . . . . . . . . . . Repair Station Hacks . | . . . . . . . . . . . . Recycling Unit Hacks . | . . . . . . . . . . . . Scanalyzer . | . . . . . . . . . . . . Garrison Access Hacks . | . . . . . . . . . . . . Unauthorized Hacks . | . . . . . . . . . . . . Terminals . | . . . . . . . . . . . . Fabricators . | . . . . . . . . . . . . Repair Stations . | . . . . . . . . . . . . Recycling Units . | . . . . . . . . . . . . Scanalyzers . | . . . . . . . . . . . . Garrison Access . | . . . . . . . . . . . . Data Cores Recovered . | . . . . . . . . . . . . Used . | . . . . . . . . . . . . Hacking Detections 2 | . 1 . . . . . 1 . . . . Full Trace Events . | . . . . . . . . . . . . Feedback Events . | . . . . . . . . . . . . Feedback Blocked . | . . . . . . . . . . . . Robot Schematics Acquired . | . . . . . . . . . . . . Robots Built . | . . . . . . . . . . . . Authchips . | . . . . . . . . . . . . Time . | . . . . . . . . . . . . Total Robot Build Rating . | . . . . . . . . . . . . Part Schematics Acquired . | . . . . . . . . . . . . Parts Built . | . . . . . . . . . . . . Authchips . | . . . . . . . . . . . . Time . | . . . . . . . . . . . . Total Part Build Rating . | . . . . . . . . . . . . Parts Repaired . | . . . . . . . . . . . . Time . | . . . . . . . . . . . . Parts Recycled . | . . . . . . . . . . . . Recycled Matter . | . . . . . . . . . . . . Retrieved Matter . | . . . . . . . . . . . . Retrieved Components . | . . . . . . . . . . . . Parts Scanalyzed . | . . . . . . . . . . . . Part Schematics Acquired . | . . . . . . . . . . . . Parts Damaged . | . . . . . . . . . . . . Bothacking | -11 -10 -9 -8 -7 -7 -7 -6 -6 -6 -6 -5 ------------ Run | Scr Mat Mat Mat Fac Was Fac Fac Was Fac DSF Fac Used RIF Installer . | . . . . . . . . . . . . Robots Hacked . | . . . . . . . . . . . . Non-combat . | . . . . . . . . . . . . Combat . | . . . . . . . . . . . . Robot Hacks Applied . | . . . . . . . . . . . . Relay Couplers Released . | . . . . . . . . . . . . Fabnet Peak Effective % . | . . . . . . . . . . . . Robots Rewired . | . . . . . . . . . . . . Allies Hacked . | . . . . . . . . . . . . Hacks Repelled . | . . . . . . . . . . . . Allies | -11 -10 -9 -8 -7 -7 -7 -6 -6 -6 -6 -5 -------- Run | Scr Mat Mat Mat Fac Was Fac Fac Was Fac DSF Fac Total Allies 21 | . . . . . 20 . . 1 . . . Largest Group 20 | . . . . . 20 15 15 2 3 3 . Highest-Rated Group 524 | . . . . . 524 393 393 62 73 93 . Highest-Rated Ally 36 | . . . . . 35 36 36 31 31 36 . Total Orders . | . . . . . . . . . . . . Ally Attacks 110 | . . . . . 16 9 38 28 . 19 . Total Damage 1908 | . . . . . 322 64 558 437 . 527 . Kills 7 | . . . . . 1 1 3 . . 2 . Allies Corrupted . | . . . . . . . . . . . . Allies Melted . | . . . . . . . . . . . . Intel | -11 -10 -9 -8 -7 -7 -7 -6 -6 -6 -6 -5 ------- Run | Scr Mat Mat Mat Fac Was Fac Fac Was Fac DSF Fac Robot Analysis Total . | . . . . . . . . . . . . Derelict Logs Recovered . | . . . . . . . . . . . . Drone Launches . | . . . . . . . . . . . . Drone Recoveries . | . . . . . . . . . . . . Exploration | -11 -10 -9 -8 -7 -7 -7 -6 -6 -6 -6 -5 ------------- Run | Scr Mat Mat Mat Fac Was Fac Fac Was Fac DSF Fac Turns Passed 4289 | 41 151 294 614 384 264 250 386 162 42 162 1539 Spaces Moved 2669 | 36 100 390 347 191 138 123 199 99 33 114 899 Core 70 | 17 . . 27 . . . . . . . 26 Treads . | . . . . . . . . . . . . Legs 1284 | . . . 102 191 138 123 199 99 33 19 380 Wheels 647 | 19 78 . . . . . . . . 95 455 Hover 104 | . . . 66 . . . . . . . 38 Flight 564 | . 22 390 152 . . . . . . . . Fastest Speed 31 | 50 90 31 117 190 190 190 190 120 120 100 90 Average Speed 133 | 78 95 47 150 190 190 190 190 158 120 113 129 Slowest Speed 700 | 100 117 277 450 190 190 190 190 190 120 120 700 Overloaded Moves . | . . . . . . . . . . . . Propulsion Burnouts . | . . . . . . . . . . . . Robots Hopped 2 | . . 2 . . . . . . . . . Cave-ins Triggered 1 | . . . . . . . . . . . 1 Exploration Rate (%) 31 | 3 31 42 37 3 75 6 8 73 1 82 20 Regions Visited 11 Branch Regions . Pre-discovered Areas . | . . . . . . . . . . . . Known Exits Taken 1 | . . . . . . . . . 1 . . Unknown Exits Taken 5 | 1 1 1 1 . . 1 . . . . . Scrap Searched . | . . . . . . . . . . . . Spaces Dug 2 | . . . . . . . . . . . 2 Terrain Destroyed 9 | . . . . . . . . . . . 9 Melee . | . . . . . . . . . . . . Projectile 9 | . . . . . . . . . . . 9 AOE . | . . . . . . . . . . . . Terrain Rammed . | . . . . . . . . . . . . Walls Destroyed . | . . . . . . . . . . . . Machines Disabled . | . . . . . . . . . . . . Actions | -11 -10 -9 -8 -7 -7 -7 -6 -6 -6 -6 -5 --------- Run | Scr Mat Mat Mat Fac Was Fac Fac Was Fac DSF Fac Total 3167 | 48 135 458 402 213 140 140 206 103 34 148 1140 Wait 97 | 1 12 22 . 7 . 14 . 5 . . 36 Move 2656 | 35 99 385 346 191 137 122 199 98 32 113 899 Hop 2 | . . 2 . . . . . . . . . Pick Up 90 | 6 5 11 14 7 3 2 3 . . 7 32 Fast Attach 10 | 1 . 1 4 . . . . . 2 1 1 Attach 74 | 5 3 5 8 5 . 1 3 . . 6 38 Detach 14 | . . 4 3 . . . . . . 3 4 Swap 10 | . . 6 2 . . . . . . . 2 Drop 15 | . 2 2 4 2 . 1 . . . 2 2 Fire 180 | . 14 20 18 1 . . 1 . . . 126 Melee . | . . . . . . . . . . . . Ram 3 | . . . 3 . . . . . . . . Kick . | . . . . . . . . . . . . Crush . | . . . . . . . . . . . . Escape Stasis 16 | . . . . . . . . . . 16 . Rewire . | . . . . . . . . . . . . Trap . | . . . . . . . . . . . . Miscellaneous . | . . . . . . . . . . . . Route ------- -11/Scrapyard -10/Materials -9/Materials -8/Materials -7/Factory -7/Waste -7/Factory -6/Factory -6/Waste -6/Factory -6/DSF -5/Factory History --------- Turn | Location | Event 4 | -11/Scrapyard | Discovered new exit (range 15) 42 | -11/Scrapyard | Entered Materials 171 | -10/Materials | Discovered new exit (range 16) 193 | -10/Materials | Entered another Materials area 193 | -9/Materials | Evolved 2 slots: Propulsion x2 483 | -9/Materials | Discovered new exit (range 4) 487 | -9/Materials | Entered another Materials area 487 | -8/Materials | Evolved 2 slots: Propulsion x2 707 | -8/Materials | Build established: Mutant 988 | -8/Materials | Lost 3 parts (1p2n) 1064 | -8/Materials | Discovered new exit (range 16) 1101 | -8/Materials | Entered Factory 1101 | -7/Factory | Evolved 2 slots: Utility x2 1485 | -7/Factory | Sucked down chute 1485 | -7/Factory | Entered Waste 1486 | -7/Waste | Joined by Warlord forces that had cleared the area 1580 | -7/Waste | A Compactor rumbled back to life 1581 | -7/Waste | Spotted C-40 Crusher 1583 | -7/Waste | Allies destroyed C-40 Crusher 1590 | -7/Waste | Found Damper Plating 1669 | -7/Waste | Discovered new exit (range 15) 1749 | -7/Waste | Entered Factory 1749 | -7/Factory | Accompanied by 15 allies 1977 | -7/Factory | Discovered new exit (range 4) 1999 | -7/Factory | Entered another Factory area 1999 | -6/Factory | Accompanied by 15 allies 1999 | -6/Factory | Evolved 2 slots: Power x1, Utility x1 2310 | -6/Factory | Build established: Scavenger-Mutant 2385 | -6/Factory | Sucked down chute 2385 | -6/Factory | Entered Waste 2386 | -6/Waste | Met a frightened Derelict 2401 | -6/Waste | Spotted C-40 Crusher 2450 | -6/Waste | Spotted C-40 Crusher 2458 | -6/Waste | Spotted C-40 Crusher 2471 | -6/Waste | Crushed by Compactor (1 part destroyed, 1 dropped) 2482 | -6/Waste | Crushed by Compactor (1 part destroyed, 2 dropped) 2482 | -6/Waste | Spotted C-40 Crusher 2485 | -6/Waste | Crushed by Compactor (1 part destroyed, 1 dropped) 2489 | -6/Waste | Crushed by Compactor (1 part destroyed, 1 dropped) 2502 | -6/Waste | Spotted C-40 Crusher 2520 | -6/Waste | Lost 5 parts (2p2u1w) 2524 | -6/Waste | Discovered new exit (range 16) 2547 | -6/Waste | Entered Factory 2589 | -6/Factory | Identified exit to DSF 2589 | -6/Factory | Entered DSF 2589 | -6/DSF | Accompanied by 1 ally 2619 | -6/DSF | Additional patrols routed to DSF 2675 | -6/DSF | 13 allies followed down the chute 2732 | -6/DSF | Discovered new exit (range 16) 2751 | -6/DSF | Entered Factory 2751 | -5/Factory | Evolved 2 slots: Utility x1, Weapon x1 3020 | -5/Factory | Lost 5 parts (3n1u1w) 3242 | -5/Factory | Build established: Mutant 3421 | -5/Factory | Lost 3 parts (2n1w) 3561 | -5/Factory | Crushed by falling debris 3561 | -5/Factory | System corruption reached 10% 3592 | -5/Factory | Lost 3 parts (1n1u1w) 3772 | -5/Factory | Lost 3 parts (2n1w) 3985 | -5/Factory | Lost 6 parts (2p1n1u2w) 4043 | -5/Factory | Core integrity fell below 50% 4188 | -5/Factory | System corruption reached 30% 4221 | -5/Factory | Core integrity fell below 20% 4260 | -5/Factory | Spotted B-75 Beast 4290 | -5/Factory | Destroyed by B-75 Beast with Magnetic Acceleration Cannon Last Messages --------------- Critical hit (Burn: +37). Acquired 4 matter. System corrupted: Matter fused (-6). W/EBDR8RO175VTUZD9 MZ>2XLXE ELZF8UXY3G%E Com. Wheel destroyed. Acquired Com. Wheel. Com. Wheel destroyed. /WMEFJMUORM0QNNZXCPP,WZ7OA<22J8 Com. Wheel destroyed. Gravity Neutralizer destroyed. Wheel destroyed. System Restoration Module destroyed. Acquired 3 matter. Com. Wheel destroyed. Acquired 2 matter. Acquired 3 matter. Imp. Transmission Jammer destroyed. Critical hit (Blast). Com. Wheel destroyed. Adv. Heat Sink destroyed. Map ----- +----------------------------------------------------+ | # """"???????????????????????????????# | | #! ???????????????????????????????# | | # ???????????????????????????????# | | ###########???????????????????????????# | | #??????####???????????????????????????# | | ########"#####????????????????????????###### | | # #?????????????????????????????? | | #! #?????????????????????????????? | | # " " " " " #??????????????? ???????? ??? | | # " " " " " #??????????????? ??? ??" ??? | | # " " " " " #?????? ?? ??" "?" "?" "?? | | # " " " " " #?????# ?" ??" "?" "?" "?? | | + " " " " " #?????# ? ? ? ? T?? | | # " " " " " #????## "?" "?" "?" """ ""? | | # " " " " " #????# """ """ """ """ "?? | | # " " " " " #????# """ """ """ """ !!#?? | | ##+#### " " " "????#???# !!#?? | | #??# ?????# ??# """ """ """ """ ### | | ! #??##########????# ### """ """ """ """ # | | #?????????????#### """ """ """ """ " | | #?????????????# "#? | | "" #?????????????# #?? | | "" #?????????????# % #?? | | "" #?????????##### % ### | | #?????? % % % % | | "" #?????? % @ #######"##+""##### | | "" #?????????????###########+####?# ! | | "" #?????????????????????? !???# """" | | ?? #????????????????????# ?# """" | | ??##????????????????????# ## """" | | ????????????????????????# ## """" [ | | ????????????????????????# ##%% """ % | | ????????????????????????# ## " % | | ????????????????????????# # ]!! | | ????????????????????????# ## !!! | | ????????????????????????# | ## """T" !!! | | ?????????????????????????########?################ | | | | | | | | | | | | | | | | | | | | | | | | | | | +----------------------------------------------------+ Best States ------------- Heat Dissipation 54 Energy Generation 31 Energy Capacity 340 Matter Stores 300 Matter Capacity 300 Sight Range 16 Robot Scan Range 14 Terrain Scan Density 10 Jamming Range 14 Cloak Strength 2 Power Amplification 20 Additional Mass Support 12 Armor Coverage 1600 Resistance: KI 20 Resistance: TH 20 Resistance: EX 20 Resistance: EM 100 Resistance: I 20 Resistance: S 20 Resistance: P 20 Core Shielding 20 Propulsion Shielding 66 Evasion (%) 63 Target Analysis 6 Offensive Hacking 10 Item Schematics ----------------- None Robot Schematics ------------------ None Fabricated ------------ Nothing Alien Tech Used ----------------- None Achievements -------------- Below Superinsulated System Compromised Challenges ------------ None Game ------ Seed DispersionTachyonGenerator Manual? 0 Play Time 00:44:59 Cumulative 11.9 hours Start 2022.03.22 @ 12:54:59 End 2022.03.22 @ 13:39:15 Sessions 1 Manual Loads 0 Difficulty Adventurer Special Mode None Game No. 13 Rogue 0 Adventurer 13 Explorer 0 Win Type - Total 0 Types 0/0/0/0/0/0/0/0/0 Lore% 5 Gallery% 23 Achievement% 19 Wizard Run 0 Options --------- ASCII 0 Keyboard 0 Movement Mouse Keybinds 0 Fullscreen 1 Font 18/Smallcaps Map View 76x50 Tactical HUD 0 Map Filters NONE Filters NONE Steam 1 RUN: ff64c2bd-dfd2-4bf6-b5d5-f1aedbfcab52